Cogmind - Beta 13 @@@ ROGUE MODE // 2024.04.17 @ 15:20:57 Player: Fazzonamite Result: Destroyed by S-10 Pest with Light Assault Rifle Performance ------------- Evolutions (1) 500 Regions Visited (2) 400 Robots Destroyed (3) 15 Value Destroyed (125) 125 Prototype IDs (0) 0 Alien Tech Used (0) 0 Bonus (200) 200 TOTAL SCORE: 1240 Bonus ------- Pacifist 200 Cogmind --------- Core Integrity 0/400 Matter 300/300 Energy 99/100 System Corruption 0% Temperature Cool (6) Movement Core (100) Ox1 Location -9/Materials Parts ------- > --- POWER (1) -------- (None) > --- PROPULSION (2) --- (None) > --- UTILITY (4) ------ Small Storage Unit > --- WEAPON (2) ------- (None) > --- INVENTORY (8) ---- Cooling System Peak State ------------ > --- POWER ------------ Light Ion Engine > --- PROPULSION ------- Improved Aluminum Leg Wheel > --- UTILITY ---------- Small Storage Unit > --- WEAPON ----------- Small Laser Assault Rifle > --- INVENTORY -------- Light Ion Engine Wheel Grenade Launcher [Rating: 7] Favorites ----------- Power Light Ion Engine Engine Light Ion Engine Propulsion Wheel Treads Light Treads Leg Improved Aluminum Leg Wheel Wheel Utility Small Storage Unit Storage Small Storage Unit Weapon Assault Rifle Energy Gun Small Laser Ballistic Gun Assault Rifle Launcher Grenade Launcher Build | -11 -10 -9 ------- Run | Yrd Mat Mat Slots Evolved 2 | . . 2 Power . | . . . Propulsion . | . . . Utility 2 | . . 2 Weapon . | . . . Parts Attached 13 | 6 . 7 Power 2 | 1 . 1 Engine 2 | 1 . 1 Core . | . . . Reactor . | . . . Propulsion 6 | 2 . 4 Treads 2 | . . 2 Leg 1 | . . 1 Wheel 3 | 2 . 1 Hover . | . . . Flight . | . . . Utility 1 | 1 . . Device . | . . . Storage 1 | 1 . . Processor . | . . . Hackware . | . . . Protection . | . . . Artifact . | . . . Weapon 4 | 2 . 2 Energy Gun 2 | 1 . 1 Energy Cannon . | . . . Ballistic Gun 1 | 1 . . Ballistic Cannon . | . . . Launcher 1 | . . 1 Special Weapon . | . . . Impact Weapon . | . . . Slashing Weapon . | . . . Piercing Weapon . | . . . Special Melee Weapon . | . . . Unidentified Prototypes . | . . . Parts Lost 8 | . . 8 Power 2 | . . 2 Propulsion 3 | . . 3 Utility . | . . . Weapon 3 | . . 3 Highest Loss Streak 4 | . . 4 To Critical Strikes . | . . . Average Slot Usage (%) 63 | . 85 51 Engine 11 | . 14 9 Treads 7 | . . 11 Wheel 14 | . 28 7 Storage 12 | . 14 11 Energy Gun 7 | . 14 3 Ballistic Gun 7 | . 14 3 Launcher 3 | . . 5 Naked Turns . | . . . Heaviest Build 12 | 11 11 12 Greatest Support 40 | 20 20 40 Greatest Overweight (x) 2 | . . 2 Average Overweight (x) . | . . . Largest Inventory Capacity 8 | 8 8 8 Average Capacity 7 | 6 8 8 Most Carried 4 | 4 2 3 Average Carried 1 | 1 1 1 Final Capacity 8 | 8 8 8 Final Carried 2 | 1 2 1 Class Distribution -------------------- 100% | Mutant Dominant Class ---------------- Mutant | -10/Materials Mutant | -9/Materials Resources | -11 -10 -9 ----------- Run | Yrd Mat Mat Matter Collected 371 | 205 . 166 Remotely . | . . . Salvage Created 92 | . . 92 Parts 3 | . . 3 Haulers Intercepted . | . . . Recyclers Shooed . | . . . Parts Field Recycled . | . . . Retrieved Matter . | . . . Parts Self-Destructed . | . . . Prevented . | . . . Kills | -11 -10 -9 ------- Run | Yrd Mat Mat Combat Hostiles Destroyed 3 | . . 3 AOE 3 | . . 3 Classes Destroyed 3 | . . 3 Grunt 1 | . . 1 Brawler 1 | . . 1 Sentry 1 | . . 1 Best Kill Streak 3 | . . 3 Combat Bots Only 3 | . . 3 Max Kills in Single Turn 1 | . . 1 Gunslinging . | . . . Exploded 1 | . . 1 Melee . | . . . Uniques/NPCs Destroyed . | . . . Combat | -11 -10 -9 -------- Run | Yrd Mat Mat Hostile Shots Fired 107 | . 1 106 Missed 25 | . . 25 Damage Taken 1115 | . 11 1104 Core 416 | . 11 405 Absorbed by Shields . | . . . Core Remaining (%) 97 | 100 95 . Volleys Fired 11 | . . 11 Largest 2 | . . 2 Hottest 60 | . . 60 Shots Fired 19 | . . 19 Gun 15 | . . 15 Cannon . | . . . Launcher 4 | . . 4 Special . | . . . Kinetic 8 | . . 8 Thermal . | . . . Explosive 4 | . . 4 Electromagnetic 7 | . . 7 Robot Hit Streak 8 | . . 8 Robot Miss Streak 1 | . . 1 Penetration Max . | . . . Secondary Targets . | . . . Shots Hit Robots 16 | . . 16 Core Hits 5 | . . 5 Critical Kills . | . . . Critical Parts Destroyed . | . . . Critical Strikes . | . . . Melee Attacks . | . . . Impact . | . . . Slashing . | . . . Piercing . | . . . Sneak Attacks . | . . . Combat Hostiles . | . . . Follow-up Attacks . | . . . Damage Inflicted 472 | . . 472 Guns 155 | . . 155 Cannons . | . . . Explosions 317 | . . 317 Melee . | . . . Ramming . | . . . Kinetic 89 | . . 89 Thermal . | . . . Explosive 317 | . . 317 Electromagnetic 66 | . . 66 Impact . | . . . Slashing . | . . . Piercing . | . . . Highest Corruption . | . . . Average Corruption . | . . . Corruption Purged . | . . . Corruption Blocked . | . . . Overload Shots . | . . . Overflow Damage 29 | . . 29 Projectiles . | . . . Explosions 29 | . . 29 Melee . | . . . Knockbacks . | . . . Impact . | . . . Kinetic . | . . . Secondary . | . . . Self-Inflicted Damage 92 | . . 92 Shots 4 | . . 4 Rammed . | . . . Targets Rammed . | . . . Kicked . | . . . Crushed . | . . . Highest Temperature 45 | . . 45 Average Temperature 16 | . . 16 Received Heat Transfer 294 | . 6 288 Siege Activations . | . . . Robots Corrupted . | . . . Combat Hostiles . | . . . Parts Fried . | . . . Impact Corruptions . | . . . Robots Melted . | . . . Combat Hostiles . | . . . Parts Melted . | . . . Heat Transferred . | . . . Parts Sabotaged . | . . . Parts Stolen . | . . . Parts Stripped . | . . . Power Chain Reactions . | . . . Alert | -11 -10 -9 ------- Run | Yrd Mat Mat Peak Influence 116 | . . 116 Initial . | . . . Average 39 | . . 67 Maximum Alert Level . | . . . Low Security (%) 100 | 100 100 100 Level 1 . | . . . Level 2 . | . . . Level 3 . | . . . Level 4 . | . . . Level 5 . | . . . High Security . | . . . Max Security . | . . . Squads Dispatched 2 | . 1 1 Investigation 1 | . 1 . Extermination . | . . . Reinforcement 1 | . . 1 Assault . | . . . Garrison . | . . . Intercept . | . . . Searches Triggered . | . . . Construction Impeded . | . . . Haulers Reinforced . | . . . Active Scanning Responses . | . . . Cargo Convoy Interrupts . | . . . Stealth | -11 -10 -9 --------- Run | Yrd Mat Mat Distress Signals . | . . . Communications Jammed . | . . . Distress Signals . | . . . Times Spotted 14 | . 1 13 Peak Tracking Total 10 | . 1 10 Tactical Retreats . | . . . Traps | -11 -10 -9 ------- Run | Yrd Mat Mat Traps Triggered 1 | . 1 . Indirectly . | . . . Trap Hack Attempts . | . . . Triggered . | . . . Disarmed . | . . . Reprogrammed . | . . . Reused . | . . . Traps Extracted . | . . . Installed . | . . . Triggered . | . . . Machines | -11 -10 -9 ---------- Run | Yrd Mat Mat Machines Disabled 1 | . . 1 Max in Single Turn 1 | . . 1 Machines Repaired . | . . . Machines Dismantled . | . . . Machines Sabotaged . | . . . Overloaded Fab Kills . | . . . Hacking | -11 -10 -9 --------- Run | Yrd Mat Mat Machines Accessed . | . . . Terminals . | . . . Fabricators . | . . . Repair Stations . | . . . Recycling Units . | . . . Scanalyzers . | . . . Garrison Access . | . . . Total Hacks . | . . . Successful . | . . . Failed . | . . . Catastrophic . | . . . Database Lockouts . | . . . Manual . | . . . Terminals . | . . . Fabricators . | . . . Repair Stations . | . . . Recycling Units . | . . . Scanalyzers . | . . . Garrison Access . | . . . Terminal Hacks . | . . . Fabricator Hacks . | . . . Repair Station Hacks . | . . . Recycling Unit Hacks . | . . . Scanalyzer . | . . . Garrison Access Hacks . | . . . Unauthorized Hacks . | . . . Terminals . | . . . Fabricators . | . . . Repair Stations . | . . . Recycling Units . | . . . Scanalyzers . | . . . Garrison Access . | . . . Data Cores Recovered . | . . . Used . | . . . Hacking Detections . | . . . Full Trace Events . | . . . Feedback Events . | . . . Feedback Blocked . | . . . Robot Schematics Acquired . | . . . Robots Built . | . . . Authchips . | . . . Time . | . . . Total Robot Build Rating . | . . . Part Schematics Acquired . | . . . Parts Built . | . . . Authchips . | . . . Time . | . . . Total Part Build Rating . | . . . Parts Repaired . | . . . Time . | . . . Parts Recycled . | . . . Recycled Matter . | . . . Retrieved Matter . | . . . Retrieved Components . | . . . Parts Scanalyzed . | . . . Part Schematics Acquired . | . . . Parts Damaged . | . . . Bothacking | -11 -10 -9 ------------ Run | Yrd Mat Mat Used RIF Installer . | . . . Robots Hacked . | . . . Non-combat . | . . . Combat . | . . . Robot Hacks Applied . | . . . Relay Couplers Released . | . . . Fabnet Peak Effective % . | . . . Robots Rewired . | . . . Allies Hacked . | . . . Hacks Repelled . | . . . Allies | -11 -10 -9 -------- Run | Yrd Mat Mat Total Allies . | . . . Largest Group . | . . . Highest-Rated Group . | . . . Highest-Rated Ally . | . . . Total Orders . | . . . Ally Attacks . | . . . Total Damage . | . . . Kills . | . . . Allies Corrupted . | . . . Allies Melted . | . . . Intel | -11 -10 -9 ------- Run | Yrd Mat Mat Robot Analysis Total . | . . . Derelict Logs Recovered . | . . . Drone Launches . | . . . Drone Recoveries . | . . . Exploration | -11 -10 -9 ------------- Run | Yrd Mat Mat Turns Passed 429 | 39 143 247 Spaces Moved 351 | 34 172 145 Core 17 | 4 . 13 Treads 86 | . . 86 Legs . | . . . Wheels 248 | 30 172 46 Hover . | . . . Flight . | . . . Fastest Speed 50 | 50 80 80 Average Speed 102 | 76 80 135 Slowest Speed 160 | 80 80 160 Overloaded Moves . | . . . Propulsion Burnouts . | . . . Robots Hopped . | . . . Cave-ins Triggered . | . . . Exploration Rate (%) 17 | 3 21 29 Regions Visited 2 Branch Regions . Pre-discovered Areas . | . . . Known Exits Taken . | . . . Unknown Exits Taken 2 | 1 1 . Scrap Searched . | . . . Spaces Dug . | . . . Terrain Destroyed 13 | . . 13 Melee . | . . . Projectile . | . . . AOE 13 | . . 13 Terrain Rammed . | . . . Walls Destroyed . | . . . Machines Disabled . | . . . Actions | -11 -10 -9 --------- Run | Yrd Mat Mat Total 402 | 46 177 179 Wait 12 | . 5 7 Move 349 | 33 171 145 Hop . | . . . Pick Up 13 | 7 1 5 Fast Attach . | . . . Attach 13 | 6 . 7 Detach 1 | . . 1 Swap . | . . . Drop 3 | . . 3 Fire 11 | . . 11 Melee . | . . . Ram . | . . . Kick . | . . . Crush . | . . . Escape Stasis . | . . . Rewire . | . . . Trap . | . . . Miscellaneous . | . . . Route ------- -11/Scrapyard -10/Materials -9/Materials (discovered 2 exits: [*Mat] / [*Min]) History --------- Turn | Location | Event 23 | -11/Scrapyard | Discovered new exit (range 15) 40 | -11/Scrapyard | Entered Materials 177 | -10/Materials | Discovered new exit (range 3) 183 | -10/Materials | Entered another Materials area 183 | -9/Materials | Evolved 2 slots: Utility x2 294 | -9/Materials | Lost 4 parts (1p1n2w) 306 | -9/Materials | Build established: Mutant 383 | -9/Materials | Discovered new exit (range 12) 394 | -9/Materials | Core integrity fell below 50% 426 | -9/Materials | Core integrity fell below 20% 429 | -9/Materials | Discovered new exit (range 16) 430 | -9/Materials | Destroyed by S-10 Pest with Light Assault Rifle Last Messages --------------- The unstable cave ceiling collapses. C-30 ARC bursts open, deploying its payload. B-36 Bruiser unfolds itself. G-34 Mercenary unfolds itself. Acquired 117 matter. U-05 Engineer lays Concrete. U-05 Engineer builds a Wall. Acquired Cooling System. K-01 Serf collects debris. EXIT=FOUND ALERT: Hostiles spotted, dispatching reinforcements to Terminal M004. B-36 Bruiser destroyed. R-06 Scavenger collects Lgt. Armor Plating. Grenade Launcher destroyed. K-01 Serf cleans the Fusion Modulator. Lgt. Treads destroyed. Lgt. Ion Engine destroyed. Lgt. Treads destroyed. EXIT=FOUND Map ----- +----------------------------------------------------+ | T # #?????????????????????????? | | " # #?????????????????????????? | | ###### #?????????????????????????? | | """ """ #????# #?????????????????????????? | | """ """ #????#####?????????????????????????? | | """ """ #??????????????????????????????????? | | #??????????????????????????????????? | | #??????????????????????????????????? | | ###??????????????????????????????????? | | #????????????????????????????????????? | | #????????????????????????????????????? | | ###########??????????????????????????? | | ######### ## #??????????????????????????? | | ???????# # """ #??????????????????????????? | | ???????# # ! """ #??????????????????????????? | | ???????+ T + """ #??????????????????????????? | | ???????# # #??????????????????????????? | | ???????# # #??????????????????????????? | | ???????## ## "T" #??????????????????????????? | | ????????# ## """ #??????????????????????????? | | ????????# ## #??????????????????????????? | | ????????# #####/#####??????????????????????????? | | ????????# #?# g w##########+#########?????????? | | ????????# #?# g s ????????? | | ????????# ?## Ys < ????????? | | ?????? s @ ????????? | | ????? [### ##########+###???????????????? | | ????? ??#######????????????????????????????? | | ???????? ??????????????????????????????????????? | | ?????????? ??????????????????????????????????????? | | ?????????????????????????????????????????????????? | | ?????????????????????????????????????????????????? | | ?????????????????????????????????????????????????? | | ?????????????????????????????????????????????????? | | ?????????????????????????????????????????????????? | | ?????????????????????????????????????????????????? | | ?????????????????????????????????????????????????? | | ?????????????????????????????????????????????????? | | ?????????????????????????????????????????????????? | | | | | | | | | | | | | | | | | | | | | | | +----------------------------------------------------+ Best States ------------- Heat Dissipation 28 Energy Generation 10 Energy Capacity 125 Matter Stores 300 Matter Capacity 300 Sight Range 16 Terrain Scan Density 10 Evasion (%) 44 Recoil Reduction 2 Item Schematics ----------------- None Robot Schematics ------------------ None Fabricated ------------ Nothing Alien Tech Used ----------------- None Achievements -------------- None Challenges ------------ None Game ------ Seed AntimissileWeightCloak Manual? 0 Play Time 00:10:13 Cumulative 13.1 hours Start 2024.04.17 @ 15:13:04 End 2024.04.17 @ 15:20:57 Sessions 1 Manual Loads 0 Difficulty Rogue Special Mode None Game No. 20 Rogue 20 Adventurer 0 Explorer 0 Win Type - Total 0 Types 0/0/0/0/0/0/0/0/0 Lore% 8 Gallery% 15 Achievement% 13 Wizard Run 0 Options --------- Layout 1 ASCII 0 Keyboard 0 Movement Mouse Keybinds 0 Fullscreen 1 Font 48/Smallcaps Map View 50x35 Zoom Use 0% Tactical HUD 0 Map Filters NONE Filters NONE Steam 1 RUN: b5083714-71c8-4ee2-8ff6-2e2dfbdc2880